bitfinex-derivatives/quotes_SOLF0:USTF0_20240926
["timestamp","ask_amount","ask_price","bid_price","bid_amount"]
[1727317808513,3.3616,148.76,148.74,10.33]
[1727317808709,27.46864036,148.77,148.75,10.33]
[1727317808911,13.61155174,148.77,148.75,10.33]
[1727317809109,27.46868473,148.79,148.75,10.33]
[1727317809616,3.3615,148.77,148.75,10.33]
[1727317810015,16.97305174,148.77,148.75,10.33]
[1727317810215,3.3616,148.76,148.74,10.33]
[1727317810416,3.3616,148.76,148.73,13.6922]
[1727317811715,3.3616,148.76,148.74,10.33]
[1727317819026,23.94298792,148.79,148.73,10.33]
[1727317819027,10.33,148.77,148.73,10.33]
[1727317819826,3.3619,148.75,148.73,10.33]
[1727317825027,3.362,148.74,148.73,10.33]
[1727317825433,3.362,148.74,148.71,6.0669]
[1727317825838,3.362,148.74,148.72,10.33]
[1727317829544,10.33,148.75,148.7,10.33]
[1727317830045,37.80628553,148.75,148.7,10.33]
[1727317830246,3.3624,148.73,148.7,10.33]
[1727317834752,27.47960013,148.76,148.72,10.33]
[1727317834952,6.7179,148.88,148.75,10.33]
[1727317835157,27.47430026,148.87,148.79,10.33]
[1727317835351,27.47430026,148.87,148.68,1.279]
[1727317835352,10.33,148.85,148.81,10.33]
[1727317835557,3.3605,148.81,148.8,10.33]
[1727317836148,16.97457576,148.81,148.8,10.33]
[1727317836354,16.97457576,148.81,148.78,10.33]
[1727317836658,10.33,148.83,148.78,10.33]
[1727317838350,24.18273532,148.83,148.78,10.33]
[1727317838546,3.3606,148.81,148.78,10.33]
[1727317840459,3.3607,148.8,148.78,10.33]
[1727317845156,17.20876902,148.8,148.78,10.33]
[1727317845359,3.3607,148.8,148.78,10.33]
[1727317846359,17.20076357,148.8,148.78,10.33]
[1727317846663,3.3607,148.8,148.78,10.33]
[1727317847661,29.76353857,148.8,148.78,10.33]
[1727317847856,3.3607,148.8,148.78,10.33]
[1727317849056,29.76483275,148.8,148.78,10.33]
[1727317849256,13.84100007,148.79,148.78,10.33]
[1727317849858,3.3607,148.8,148.78,10.33]
[1727317850563,29.76640179,148.8,148.78,10.33]
[1727317850952,13.84100007,148.79,148.78,10.33]
[1727317851158,3.3609,148.79,148.78,10.33]
[1727317852258,17.20190007,148.79,148.78,10.33]
[1727317852562,3.3609,148.79,148.78,10.33]
[1727317862669,17.21318061,148.79,148.78,10.33]
[1727317863361,3.3609,148.79,148.78,10.33]
[1727317863567,3.3608,148.8,148.78,10.33]
[1727317863770,3.3608,148.8,148.79,10.33]
[1727317864165,17.21308061,148.8,148.79,10.33]
[1727317864367,17.21308061,148.8,148.78,10.33]
[1727317864567,3.3608,148.8,148.78,10.33]
[1727317865870,29.78880005,148.8,148.78,10.33]
[1727317866171,3.3608,148.8,148.78,10.33]
[1727317868865,3.3609,148.79,148.78,10.33]
[1727317869772,3.3609,148.79,148.71,80.7]
[1727317869773,10.33,148.79,148.71,80.7]
[1727317869972,10.33,148.77,148.72,10.33]
[1727317870377,3.3621,148.74,148.72,10.33]
[1727317872776,3.3621,148.74,148.71,13.6927]
[1727317873571,3.3621,148.74,148.71,10.33]
[1727317874177,10.33,148.75,148.7,10.33]
[1727317874777,3.3624,148.73,148.7,10.33]
[1727317875674,3.3627,148.71,148.7,10.33]
[1727317875876,3.3627,148.71,148.68,10.33]
[1727317877779,3.3627,148.71,148.68,13.6933]
[1727317878173,1.3704,148.8,148.7,10.33]
[1727317878373,1.3704,148.8,148.67,3.9821]
[1727317878374,10.33,148.77,148.73,10.33]
[1727317878981,3.3621,148.74,148.73,10.33]
[1727317882482,10.33,148.75,148.7,10.33]
[1727317882687,10.33,148.75,148.67,3.9821]
[1727317882688,10.33,148.74,148.67,3.9821]
[1727317882884,10.33,148.74,148.69,10.33]
[1727317883382,3.3628,148.71,148.69,10.33]
[1727317883778,13.84986806,148.75,148.67,3.9821]
[1727317883982,3.3632,148.69,148.67,14.3121]
[1727317884582,3.3632,148.69,148.67,12.977]
[1727317885589,3.3634,148.68,148.67,2.647]
[1727317887290,3.3639,148.66,148.63,1.3295]
[1727317887484,12.56494068,148.73,148.63,2.7373]
[1727317887790,10.33,148.67,148.63,1.4078]
[1727317888384,3.3643,148.64,148.63,1.4078]
[1727317888982,1.3365,148.72,148.62,80.72]
[1727317888983,3.3645,148.63,148.62,80.72]
[1727317896095,3.3645,148.63,148.62,91.05]
[1727317896494,3.3645,148.63,148.62,10.33]
[1727317898994,3.3647,148.62,148.61,11.6576]
[1727317900702,3.3647,148.62,148.61,10.33]
[1727317902300,3.365,148.61,148.6,52.81201791]
[1727317905295,3.365,148.61,148.59,10.33]
[1727317908702,3.365,148.61,148.6,10.33]
[1727317912202,3.365,148.61,148.59,10.33]
[1727317912711,3.3652,148.6,148.57,3.3658]
[1727317912907,3.39783604,148.68,148.59,10.33]
[1727317913212,1.3334,148.69,148.62,10.33]
[1727317913399,1.3334,148.69,148.61,3.3649]
[1727317913400,10.33,148.68,148.63,10.33]
[1727317914504,3.3644,148.64,148.62,10.33]
[1727317917307,1.3334,148.69,148.63,10.33]
[1727317917512,6.7239,148.75,148.66,10.33]
[1727317917812,10.33,148.71,148.66,10.33]
[1727317918508,3.3635,148.68,148.66,10.33]
[1727317920109,3.32715998,148.72,148.66,10.33]
[1727317920110,3.3636,148.67,148.66,10.33]
[1727317920513,3.3636,148.67,148.65,10.33]
[1727317923713,3.3635,148.68,148.66,10.33]
[1727317924317,1.3219,148.74,148.67,10.33]
[1727317924619,1.3219,148.74,148.71,10.33]
[1727317925929,3.3627,148.72,148.71,10.33]
[1727317926122,3.3627,148.72,148.7,10.33]
[1727317926422,10.33,148.75,148.7,10.33]
[1727317926921,3.3626,148.72,148.7,10.33]
[1727317927620,3.3626,148.72,148.71,10.33]
[1727317928621,3.3623,148.73,148.71,10.33]
[1727317928822,1.3402,148.78,148.72,10.33]
[1727317929029,1.3402,148.78,148.75,10.33]
[1727317929218,3.3616,148.76,148.75,10.33]
[1727317929416,1.3402,148.78,148.74,10.33]
[1727317929417,11.6702,148.78,148.74,10.33]
[1727317929722,11.6702,148.78,148.71,3.3626]
[1727317929723,3.3622,148.74,148.73,10.33]
[1727317930831,10.33,148.8,148.73,10.33]
[1727317931027,1.3389,148.83,148.7,3.42525953]
[1727317931028,1.4006,148.82,148.75,10.33]
[1727317931328,1.4006,148.82,148.76,10.33]
[1727317931625,10.33,148.81,148.76,10.33]
[1727317931818,3.3613,148.77,148.76,10.33]
[1727317932012,10.33,148.81,148.76,10.33]
[1727317932218,1.4006,148.82,148.79,10.33]
[1727317932619,13.70021719,148.84,148.79,10.33]
[1727317932824,10.33,148.84,148.8,10.33]
[1727317933516,4.81252348,148.85,148.8,10.33]
[1727317933721,10.33,148.83,148.8,10.33]
[1727317934626,3.3604,148.81,148.78,3.3611]
[1727317934821,3.3604,148.81,148.73,80.72]
[1727317935920,3.3604,148.81,148.8,10.33]
[1727317944229,10.33,148.85,148.75,82.0669]
[1727317944230,10.33,148.83,148.75,82.0669]
[1727317944429,10.33,148.83,148.78,10.33]
[1727317944832,3.3609,148.79,148.78,10.33]
[1727317950527,3.43240825,148.87,148.78,10.33]
[1727317950728,10.33,148.86,148.82,10.33]
[1727317950925,10.33,148.87,148.83,10.33]
[1727317951132,3.3598,148.84,148.75,1.3669]
[1727317951330,3.3598,148.84,148.83,10.33]
[1727317952235,3.36,148.83,148.82,10.33]
[1727317952628,10.33,148.85,148.81,10.33]
[1727317953135,3.3602,148.82,148.81,10.33]
[1727317953631,10.33,148.84,148.79,10.33]
[1727317954539,10.33,148.81,148.75,2.6837]
[1727317954727,10.33,148.81,148.76,10.33]
[1727317955838,3.3613,148.78,148.76,10.33]
[1727317957237,3.3613,148.78,148.77,10.33]
[1727317965043,10.33,148.84,148.77,10.33]
[1727317965234,6.7183,148.87,148.81,10.33]
[1727317965438,3.3602,148.82,148.81,10.33]
[1727317965739,4.65179132,148.89,148.81,10.33]
[1727317965940,3.36,148.84,148.8,3.3606]
[1727317966141,3.36,148.84,148.83,10.33]
[1727317967143,1.3453,148.91,148.83,10.33]
[1727317967144,3.3595,148.86,148.83,10.33]
[1727317967346,3.3595,148.86,148.85,10.33]
[1727317968849,3.3597,148.85,148.82,1.3645]
[1727317969152,3.3597,148.85,148.84,10.33]
[1727317977446,3.3594,148.86,148.84,10.33]
[1727317977645,3.3594,148.86,148.85,10.33]
[1727317977849,1.3492,148.9,148.85,10.33]
[1727317978046,3.3593,148.87,148.85,10.33]
[1727317978556,1.3492,148.9,148.85,10.33]
[1727317979757,3.3593,148.86,148.85,10.33]
[1727317983351,3.3593,148.86,148.82,1.3645]
[1727317983352,3.36,148.83,148.82,1.3645]
[1727317983555,3.36,148.83,148.82,11.6945]
[1727317984148,3.3599,148.84,148.82,11.6945]
[1727317984347,3.3599,148.84,148.83,10.33]
[1727317985450,10.33,148.87,148.82,10.33]
[1727317985858,3.36,148.83,148.82,10.33]
[1727318001076,36.72045062,148.89,148.82,10.33]
[1727318001272,36.72045062,148.89,148.85,10.33]
[1727318001474,26.39045062,148.88,148.85,10.33]
[1727318001867,3.3593,148.86,148.85,10.33]
[1727318003271,29.75166673,148.86,148.85,10.33]
[1727318009781,3.3593,148.86,148.85,10.33]
[1727318010582,10.33,148.89,148.84,10.33]
[1727318011077,10.33,148.88,148.84,10.33]
[1727318011281,10.33,148.85,148.79,80.66]
[1727318011478,10.33,148.85,148.8,10.33]
[1727318011673,3.3603,148.82,148.81,10.33]
[1727318012780,33.5352,149.12,148.81,10.33]
[1727318012978,11.6792,148.9,148.84,10.33]
[1727318013179,3.3597,148.85,148.84,10.33]
[1727318014882,26.39351092,148.89,148.84,10.33]
[1727318015074,12.55376574,148.93,148.89,10.33]
[1727318015274,12.55093644,148.93,148.89,10.33]
[1727318015479,13.82854828,148.93,148.89,10.33]
[1727318015684,3.29130812,148.94,148.89,10.33]
[1727318015685,3.3584,148.91,148.89,10.33]
[1727318016883,3.3584,148.91,148.79,80.66]
[1727318016884,3.29130812,148.94,148.9,10.33]
[1727318017186,1.3616,148.98,148.93,10.33]
[1727318017187,1.3062,148.97,148.93,10.33]
[1727318017387,3.3577,148.94,148.93,10.33]
[1727318017985,29.72997132,148.94,148.93,10.33]
[1727318020387,26.37227132,148.94,148.93,10.33]
[1727318020580,13.82474082,148.94,148.93,10.33]
[1727318020780,3.3577,148.93,148.89,3.3586]
[1727318020980,3.3577,148.93,148.92,10.33]
[1727318021581,3.358,148.92,148.88,3.3588]
[1727318021786,3.358,148.92,148.86,2.7474]
[1727318021787,3.358,148.92,148.91,10.33]
[1727318021982,13.82474082,148.94,148.91,13.6882]
[1727318022195,26.35044648,148.96,148.93,10.33]
[1727318022395,26.35044648,148.96,148.95,10.33]
[1727318022396,12.52570566,148.96,148.95,10.33]
[1727318022596,3.3571,148.96,148.95,10.33]
[1727318023089,29.67934699,148.96,148.95,10.33]
[1727318023590,17.15364133,148.96,148.95,10.33]
[1727318023790,3.3571,148.96,148.95,10.33]
[1727318024200,13.79654133,148.96,148.94,10.33]
[1727318024990,1.3062,148.97,148.94,10.33]
[1727318025784,3.3573,148.95,148.94,10.33]
[1727318026597,1.3062,148.97,148.94,10.33]
[1727318027599,3.3577,148.94,148.9,3.3582]
[1727318027788,3.3577,148.94,148.93,10.33]
[1727318029999,3.3276156,148.99,148.93,10.33]
[1727318030199,3.3276156,148.99,148.96,10.33]
[1727318030597,3.3568,148.97,148.96,10.33]
[1727318030995,13.77657261,149.01,148.96,10.33]
[1727318030996,80.62,149.15,148.96,10.33]
[1727318031189,10.33,149.06,149.01,10.33]
[1727318031692,4.1527,149.09,149.01,10.33]
[1727318031693,26.26527719,149.07,149.01,10.33]
[1727318032002,10.33,149.05,149.01,10.33]
[1727318032193,3.3557,149.02,149.01,10.33]
[1727318032790,26.25982146,149.08,149.01,10.33]
[1727318033000,26.25982146,149.08,149.03,10.33]
[1727318033001,24.09602473,149.08,149.03,10.33]
[1727318033202,10.33,149.08,149.03,10.33]
[1727318033397,3.3553,149.04,149.03,10.33]
[1727318033793,3.3557,149.02,149.01,10.33]
[1727318034797,3.3557,149.02,148.97,4.7544]
[1727318034798,10.33,149.04,148.99,10.33]
[1727318034994,12.48333101,149.08,148.97,1.3977]
[1727318035193,12.48333101,149.08,149.03,10.33]
[1727318035194,11.6203,149.07,149.03,10.33]
[1727318036202,10.33,149.06,149.02,10.33]
[1727318036401,1.2903,149.07,149.02,10.33]
[1727318036595,3.3553,149.04,149.03,10.33]
[1727318036793,10.33,149.05,148.97,80.62]
[1727318037002,10.33,149.03,148.97,80.62]
[1727318037200,3.31027055,149.09,149.02,10.33]
[1727318037402,10.33,149.08,149.03,10.33]
[1727318038205,3.3553,149.04,149.03,10.33]
[1727318040306,3.3555,149.03,149.0,16.11]
[1727318041100,13.72318537,149.08,149.02,16.11]
[1727318041398,13.72318537,149.08,149.0,16.11]
[1727318041399,13.72318537,149.08,149.05,16.11]
[1727318041705,3.3548,149.07,149.05,16.11]
[1727318043702,16.11,149.16,149.06,16.11]
[1727318043897,17.3885,149.16,149.06,16.11]
[1727318044101,1.2975,149.15,149.06,16.11]
[1727318045802,3.3544,149.08,149.06,16.11]
[1727318046003,6.7018,149.24,149.06,16.11]
[1727318046198,6.7018,149.24,149.04,2.6913]
[1727318046199,3.9991,149.22,149.1,16.11]
[1727318046394,16.11,149.21,149.1,16.11]
[1727318046598,3.3532,149.14,149.1,16.11]
[1727318047205,46.9778,149.35,149.12,16.11]
[1727318047402,20.1162,149.23,149.12,16.11]
[1727318047702,20.1162,149.23,149.04,2.6913]
[1727318047703,16.11,149.19,149.04,2.6913]
[1727318048003,16.11,149.17,149.07,16.11]
[1727318048194,3.9641,149.16,149.07,16.11]
[1727318048803,16.11,149.15,149.05,16.11]
[1727318049602,3.3544,149.08,149.05,16.11]
[1727318050399,16.11,149.13,149.03,96.67]
[1727318051502,3.9641,149.16,149.05,16.11]
[1727318051704,3.3547,149.07,149.05,16.11]
[1727318052302,3.9641,149.16,149.06,16.11]
[1727318052507,3.9641,149.16,149.08,16.11]
[1727318053007,3.3542,149.09,149.08,16.11]
[1727318053306,2.6838,149.16,149.08,16.11]
[1727318053505,3.9617,149.16,149.08,16.11]
[1727318054000,3.9617,149.16,149.07,16.11]
[1727318054201,16.11,149.14,149.07,16.11]
[1727318054497,3.3546,149.08,149.07,16.11]
[1727318055506,3.3549,149.06,149.05,16.11]
[1727318056008,16.11,149.13,149.04,16.11]
[1727318056809,3.3552,149.05,149.04,16.11]
[1727318059306,3.3553,149.04,149.03,80.56]
[1727318059799,3.3559,149.01,149.0,16.11]
[1727318060304,16.11,149.07,148.98,16.11]
[1727318060504,19.45485647,149.07,149.0,16.11]
[1727318061406,3.3559,149.01,149.0,16.11]
[1727318061907,19.45485647,149.07,148.98,16.11]
[1727318062808,3.3564,148.99,148.98,16.11]
[1727318069311,3.3581,148.92,148.88,3.3588]
[1727318069517,3.3581,148.92,148.83,52.74692661]
[1727318069518,16.11,149.0,148.91,16.11]
[1727318069815,16.11,148.98,148.89,16.11]
[1727318070207,2.7189,148.97,148.87,1.4105]
[1727318070409,18.8289,148.97,148.88,16.11]
[1727318070612,3.3586,148.9,148.88,16.11]
[1727318070821,3.30434544,148.94,148.88,16.11]
[1727318071011,3.3586,148.89,148.88,16.11]
[1727318071417,3.32516127,148.94,148.87,1.4105]
[1727318071612,3.3589,148.88,148.87,1.4105]
[1727318071816,3.43998408,148.92,148.86,16.11]
[1727318072017,16.11,148.95,148.86,16.11]
[1727318072422,16.11,148.93,148.84,17.3973]
[1727318073123,3.3595,148.85,148.84,17.3973]
[1727318073920,3.3595,148.85,148.84,16.11]
[1727318074523,3.3598,148.84,148.83,80.58]
[1727318075317,3.3598,148.84,148.82,16.11]
[1727318075710,3.36,148.83,148.82,16.11]
[1727318076316,3.3598,148.84,148.82,16.11]
[1727318077820,3.36,148.83,148.82,16.11]
[1727318078216,2.7089,148.9,148.79,4.7361]
[1727318078217,3.3603,148.82,148.8,16.11]
[1727318078414,18.8189,148.9,148.8,16.11]
[1727318078619,1.4086,148.89,148.8,16.11]
[1727318078917,16.11,148.88,148.79,1.3753]
[1727318079415,16.11,148.88,148.78,18.7406]
[1727318080507,16.11,148.88,148.78,17.4591]
[1727318080922,3.3609,148.8,148.78,17.4591]
[1727318084213,16.11,148.88,148.78,20.8201]
[1727318084618,16.11,148.88,148.78,17.4591]
[1727318085017,1.4086,148.89,148.8,16.11]
[1727318085324,17.5186,148.89,148.81,16.11]
[1727318086021,1.4086,148.89,148.81,16.11]
[1727318088122,2.7089,148.9,148.83,16.11]
[1727318088630,3.3595,148.86,148.83,16.11]
[1727318089427,3.3596,148.85,148.83,16.11]
[1727318090119,3.41375441,148.92,148.83,16.11]
[1727318090718,16.11,148.93,148.83,19.4699]
[1727318090719,3.3592,148.87,148.83,19.4699]
[1727318093323,3.3592,148.87,148.8,4.74305384]
[1727318093324,2.6198,148.98,148.85,16.11]
[1727318093529,16.11,148.95,148.85,16.11]
[1727318093724,19.43537256,148.95,148.85,16.11]
[1727318094129,3.32537256,148.95,148.85,16.11]
[1727318094323,16.11,148.97,148.87,16.11]
[1727318094730,3.3585,148.9,148.87,16.11]
[1727318095434,3.33209562,148.94,148.87,16.11]
[1727318095630,18.7298,148.98,148.87,16.11]
[1727318096436,3.3584,148.91,148.87,16.11]
[1727318098839,16.11,148.97,148.87,16.11]
[1727318099035,2.6198,148.98,148.91,16.11]
[1727318099837,18.7298,148.98,148.9,16.11]
[1727318100134,3.3581,148.92,148.9,16.11]
[1727318100341,2.6198,148.98,148.91,16.11]
[1727318100638,18.7298,148.98,148.89,16.11]
[1727318101036,2.6198,148.98,148.91,16.11]
[1727318101628,3.3573,148.95,148.91,19.4682]
[1727318102035,2.6198,148.98,148.91,16.11]
[1727318103829,3.3573,148.96,148.91,19.468]
[1727318104035,16.11,149.0,148.91,16.11]
[1727318104231,16.11,149.02,148.94,16.11]
[1727318104934,3.357,148.97,148.94,16.11]
[1727318105936,3.3571,148.96,148.94,16.11]
[1727318106132,3.38618123,149.01,148.92,16.11]
[1727318106339,16.11,149.0,148.92,16.11]
[1727318107634,3.3575,148.95,148.92,16.11]
[1727318107938,7.43626694,149.03,148.9,19.53178988]
[1727318107939,16.11,148.99,148.9,19.53178988]
[1727318108334,7.43626694,149.03,148.86,7.2389]
[1727318108335,16.11,148.97,148.86,7.2389]
[1727318108633,16.11,148.97,148.87,16.11]
[1727318108834,3.3583,148.91,148.87,19.4689]
[1727318109036,3.3583,148.91,148.87,16.11]
[1727318109643,3.28641714,148.95,148.87,16.11]
[1727318109943,16.11,148.95,148.87,16.11]
[1727318110131,3.3585,148.9,148.87,19.469]
[1727318110331,3.3585,148.9,148.87,16.11]
[1727318110838,3.3587,148.89,148.87,16.11]
[1727318111039,3.31799146,148.94,148.87,16.11]
[1727318111642,3.3586,148.9,148.87,16.11]
[1727318112237,3.3586,148.9,148.87,19.4691]
[1727318112442,3.3583,148.91,148.87,16.11]
[1727318113741,3.3583,148.91,148.88,3.3588]
[1727318115144,19.45845011,148.95,148.87,16.11]
[1727318115644,19.45845011,148.95,148.86,2.6018]
[1727318115645,3.3589,148.88,148.86,1.3215]
[1727318116240,3.3589,148.88,148.85,16.11]
[1727318116440,3.3587,148.89,148.85,16.11]
[1727318117248,3.3587,148.89,148.85,19.4695]
[1727318117548,3.3589,148.88,148.85,19.4695]
[1727318117750,3.3589,148.88,148.85,16.11]
[1727318118149,3.359,148.88,148.85,16.11]
[1727318118852,3.3591,148.87,148.85,16.11]
[1727318119052,16.11,148.93,148.83,16.11]
[1727318119649,3.3593,148.86,148.83,16.11]
[1727318120749,3.3588,148.89,148.82,2.6111]
[1727318120943,16.11,148.9,148.82,2.6111]
[1727318121941,3.3598,148.84,148.82,2.6111]
[1727318122852,16.11,148.92,148.83,16.11]
[1727318123752,3.3596,148.85,148.83,16.11]
[1727318124348,3.3593,148.86,148.83,16.11]
[1727318124547,3.3516992,148.93,148.85,16.11]
[1727318124847,4.1651,148.96,148.87,16.11]
[1727318124848,3.3588,148.89,148.87,16.11]
[1727318125753,3.3589,148.88,148.87,16.11]
[1727318129753,3.3585,148.9,148.87,16.11]
[1727318130454,3.3585,148.9,148.87,19.469]
[1727318133657,3.36760887,148.95,148.87,16.11]
[1727318134264,3.36760887,148.95,148.87,19.469]
[1727318135958,3.3584,148.91,148.87,19.469]
[1727318136156,3.36760887,148.95,148.88,3.3588]
[1727318136760,3.3581,148.92,148.88,3.3588]
[1727318136962,3.3581,148.92,148.89,3.3586]
[1727318137163,3.3581,148.92,148.87,16.11]
[1727318137764,3.3581,148.92,148.89,3.3586]
[1727318138361,3.3581,148.92,148.89,19.4686]
[1727318138763,3.3576,148.94,148.91,16.11]
[1727318139859,3.3576,148.94,148.91,19.4681]
[1727318145678,3.3576,148.94,148.91,16.11]
[1727318146273,3.3576,148.94,148.91,19.4681]
[1727318147275,3.3576,148.94,148.91,16.11]
[1727318147872,13.79447212,149.0,148.91,16.11]
[1727318148078,17.86327212,149.02,148.93,16.11]
[1727318148274,10.32,149.0,148.96,10.32]
[1727318148474,3.3568,148.97,148.96,10.32]
[1727318149571,4.0688,149.02,148.96,10.32]
[1727318149878,10.32,149.01,148.98,10.32]
[1727318150070,4.0688,149.02,148.95,10.32]
[1727318150071,3.357,148.97,148.95,10.32]
[1727318150676,3.3571,148.96,148.95,10.32]
[1727318151678,3.3569,148.97,148.95,10.32]
[1727318153374,3.3569,148.97,148.96,10.32]
[1727318156383,10.32,149.0,148.89,80.62]
[1727318156384,3.3571,148.96,148.95,10.32]
[1727318156682,10.32,148.99,148.94,10.32]
[1727318157882,3.3573,148.95,148.94,10.32]
[1727318163290,3.3571,148.96,148.94,10.32]
[1727318163492,3.3571,148.96,148.95,10.32]
[1727318165593,4.0688,149.02,148.95,10.32]
[1727318165795,14.3888,149.02,148.98,10.32]
[1727318166788,3.3564,148.99,148.98,10.32]
[1727318170596,3.3568,148.97,148.94,3.3575]
[1727318170792,3.3568,148.97,148.96,10.32]
[1727318171598,4.0688,149.02,148.96,10.32]
[1727318171799,17.85430603,149.02,148.99,10.32]
[1727318171990,4.0688,149.02,148.99,10.32]
[1727318172301,17.85338488,149.02,148.99,10.32]
[1727318172891,3.3562,149.0,148.99,10.32]
[1727318193812,3.356,149.01,148.99,10.32]
[1727318194009,3.356,149.01,149.0,10.32]
[1727318195412,4.0849,149.09,149.0,13.676]
[1727318195613,10.32,149.07,149.02,10.32]
[1727318195808,4.0849,149.09,149.02,10.32]
[1727318195809,13.77923068,149.08,149.02,10.32]
[1727318196010,14.4049,149.09,149.04,10.32]
[1727318197513,3.355,149.05,149.04,10.32]
[1727318205924,3.3555,149.04,149.0,3.3561]
[1727318206217,3.3555,149.04,149.03,10.32]
[1727318208323,3.3553,149.04,149.03,10.32]
[1727318220639,4.0849,149.09,149.03,10.32]
[1727318220941,4.0849,149.09,149.06,10.32]
[1727318221137,17.15567581,149.09,149.08,10.32]
[1727318221337,3.3544,149.09,149.08,10.32]
[1727318221935,36.63880333,149.11,148.99,1.3304]
[1727318222142,10.32,149.1,149.06,10.32]
[1727318223045,10.32,149.1,148.99,1.3304]
[1727318223441,10.32,149.1,149.05,10.32]
[1727318224839,3.3548,149.06,149.05,10.32]
[1727318229342,3.34351228,149.11,148.99,1.3304]
[1727318229343,3.3555,149.03,148.99,1.3304]
[1727318229648,10.32,149.08,149.02,10.32]
[1727318229943,3.355,149.05,149.04,10.32]
[1727318230840,3.3557,149.02,148.99,1.3304]
[1727318231040,10.32,149.06,149.02,10.32]
[1727318231240,10.32,149.07,149.03,10.32]
[1727318231440,3.3553,149.04,149.03,10.32]
[1727318235643,3.3555,149.03,148.99,4.6867]
[1727318235851,10.32,149.05,148.98,1.413]
[1727318236041,10.32,149.05,149.01,10.32]
[1727318236347,3.3554,149.04,149.03,10.32]
[1727318236543,11.723,149.08,149.03,10.32]
[1727318236738,27.73824039,149.08,149.04,10.32]
[1727318236939,1.403,149.08,149.04,10.32]
[1727318237142,10.32,149.07,149.0,3.3561]
[1727318237338,10.32,149.07,149.03,10.32]
[1727318239147,3.3553,149.04,149.03,10.32]
[1727318239547,11.723,149.08,149.03,10.32]
[1727318239743,3.3553,149.04,149.03,10.32]
[1727318239943,11.723,149.08,148.98,2.7204]
[1727318240148,10.32,149.07,149.02,10.32]
[1727318240352,3.3555,149.03,149.02,10.32]
[1727318241151,26.35295112,149.07,149.02,10.32]
[1727318241350,26.35295112,149.07,149.03,10.32]
[1727318241646,11.723,149.08,149.03,10.32]
[1727318241848,3.3555,149.04,149.03,10.32]
[1727318244749,10.32,149.07,148.98,2.7204]
[1727318244952,10.32,149.07,149.03,10.32]
[1727318245253,10.32,149.07,148.98,6.0769]
[1727318245555,36.68053486,149.07,149.02,10.32]
[1727318245747,26.36053486,149.06,149.02,10.32]
[1727318246854,3.3555,149.03,149.02,10.32]
[1727318247746,3.3555,149.03,148.98,6.0769]
[1727318247747,10.32,149.05,148.94,80.56]